[Event "94th FRA-ch Accession 2019"]
[Site "Chartres"]
[Date "2019.08.17"]
[Round "1.1"]
[White "Velten, Paul"]
[Black "Hutois, Mickael"]
[Result "1-0"]
[ECO "A47"]
[WhiteElo "2527"]
[BlackElo "2279"]
[Annotator "ChessBase"]
[PlyCount "73"]
[EventDate "2019.08.17"]
[EventType "swiss"]
[EventCountry "FRA"]
[SourceTitle "playchess.com"]
[Source "ChessBase"]
[SourceQuality "1"]
[TimeControl "40/5400+30:1800+30"]

1. d4 {[%emt 0:00:00]} Nf6 {[%emt 0:00:00]} 2. Nf3 {[%emt 0:00:54]} e6 {[%emt 0:00:00]} 3. e3 {[%emt 0:01:39]} b6 {[%emt 0:01:58]} 4. Bd3 {[%emt 0:02:31]} Bb7 {[%emt 0:00:07]} 5. O-O {[%emt 0:01:22]} Be7 {[%emt 0:01:31]} 6. Nbd2 {[%emt 0:01:54]} O-O {[%emt 0:00:53]} 7. e4 {[%emt 0:00:42]} d6 {[%emt 0:06:22]} 8. c4 {[%emt 0:06:19]} Nbd7 {[%emt 0:02:55]} 9. b3 {[%emt 0:07:45]} e5 {[%emt 0:08:06]} 10. Bb2 {[%emt 0:02:00]} Nh5 {[%emt 0:18:48]} 11. Re1 {[%emt 0:07:04]} Bf6 {[%emt 0:06:05]} 12. d5 {[%emt 0:03:22]} g6 {[%emt 0:09:23]} 13. Nf1 {[%emt 0:03:13]} a5 {[%emt 0:02:02]} 14. a3 {[%emt 0:00:32]} Bg7 {[%emt 0:03:12]} 15. Ne3 {[%emt 0:12:37]} Nc5 {[%emt 0:07:25]} 16. Bc2 {[%emt 0:00:57]} Bc8 {[%emt 0:00:25]} 17. b4 {[%emt 0:00:10]} Nb7 {[%emt 0:00:33]} 18. g3 {[%emt 0:11:24]} Bh6 {[%emt 0:01:30]} 19. Qe2 {[%emt 0:03:38]} Qe8 {[%emt 0:05:36]} 20. Nh4 {[%emt 0:02:40]} f6 {[%emt 0:09:18]} 21. Bc3 {[%emt 0:01:03]} Bd7 {[%emt 0:01:03]} 22. Neg2 {[%emt 0:03:42]} Rf7 {[%emt 0:02:53]} 23. Nf5 {[%emt 0:11:07]} Bf8 {[%emt 0:01:01]} 24. Bd2 {[%emt 0:00:25]} Kh8 {[%emt 0:04:13]} 25. Nfh4 {[%emt 0:00:11]} Ng7 {[%emt 0:03:28]} 26. f4 {[%emt 0:03:25]} exf4 {[%emt 0:00:28]} 27. gxf4 {[%emt 0:00:16]} Re7 {[%emt 0:00:15]} 28. Bc3 {[%emt 0:00:15]} Qf7 {[%emt 0:00:16]} 29. Qf2 {[%emt 0:00:23]} Kg8 {[%emt 0:00:22]} 30. f5 {[%emt 0:00:23]} gxf5 {[%emt 0:01:17]} 31. exf5 {[%emt 0:00:20]} Re5 {[%emt 0:00:38]} 32. Nf4 {[%emt 0:01:42]} Nxf5 {[%emt 0:01:42]} 33. Ne6 {[%emt 0:01:05]} Nxh4 {[%emt 0:00:41]} 34. Qxh4 {[%emt 0:00:26]} Bxe6 {[%emt 0:00:42]} 35. dxe6 {[%emt 0:00:08]} Qg7+ {[%emt 0:00:19]} 36. Kh1 {[%emt 0:00:36]} Rg5 {[%emt 0:00:02]} 37. Bxf6 {[%emt 0:01:27]} 1-0

[Event "94th FRA-ch Accession 2019"]
[Site "Chartres"]
[Date "2019.08.17"]
[Round "1.2"]
[White "Bacrot, Alexandre"]
[Black "Barseghyan, Harutyun"]
[Result "0-1"]
[ECO "B40"]
[WhiteElo "2272"]
[BlackElo "2519"]
[Annotator "ChessBase"]
[PlyCount "82"]
[EventDate "2019.08.17"]
[EventType "swiss"]
[EventCountry "FRA"]
[SourceTitle "playchess.com"]
[Source "ChessBase"]
[SourceQuality "1"]
[TimeControl "40/5400+30:1800+30"]

1. e4 {[%emt 0:00:00]} c5 {[%emt 0:01:32]} 2. Nf3 {[%emt 0:00:00]} e6 {[%emt 0:00:07]} 3. g3 {[%emt 0:00:00]} d5 {[%emt 0:04:33]} 4. exd5 {[%emt 0:00:01]} exd5 {[%emt 0:00:04]} 5. d4 {[%emt 0:00:08]} Nf6 {[%emt 0:01:22]} 6. Bg2 {[%emt 0:00:09]} Be7 {[%emt 0:00:42]} 7. O-O {[%emt 0:01:49]} O-O {[%emt 0:01:04]} 8. dxc5 {[%emt 0:09:59]} Bxc5 {[%emt 0:00:28]} 9. Bg5 {[%emt 0:00:26]} Nc6 {[%emt 0:18:01]} 10. Nbd2 {[%emt 0:25:26]} h6 {[%emt 0:03:26]} 11. Bxf6 {[%emt 0:01:58]} Qxf6 {[%emt 0:00:10]} 12. Nb3 {[%emt 0:00:03]} Bb6 {[%emt 0:00:14]} 13. c3 {[%emt 0:00:06]} Bf5 {[%emt 0:06:22]} 14. a4 {[%emt 0:05:36]} a6 {[%emt 0:01:02]} 15. Nbd4 {[%emt 0:02:03]} Be4 {[%emt 0:02:37]} 16. Re1 {[%emt 0:05:09]} Rfd8 {[%emt 0:13:27]} 17. Nxc6 {[%emt 0:03:45]} bxc6 {[%emt 0:00:13]} 18. a5 {[%emt 0:00:23]} Ba7 {[%emt 0:00:45]} 19. Nd4 {[%emt 0:01:46]} c5 {[%emt 0:02:54]} 20. Ne2 {[%emt 0:02:31]} c4 {[%emt 0:04:07]} 21. Nf4 {[%emt 0:03:06]} g5 {[%emt 0:04:05]} 22. Nh3 {[%emt 0:02:48]} Bxg2 {[%emt 0:00:07]} 23. Kxg2 {[%emt 0:00:07]} d4 {[%emt 0:00:22]} 24. Qg4 {[%emt 0:02:02]} dxc3 {[%emt 0:01:08]} 25. bxc3 {[%emt 0:00:06]} Rd2 {[%emt 0:01:06]} 26. Re2 {[%emt 0:01:19]} Rxe2 {[%emt 0:03:38]} 27. Qxe2 {[%emt 0:00:07]} Qxc3 {[%emt 0:00:11]} 28. Rd1 {[%emt 0:01:04]} Qxa5 {[%emt 0:07:03]} 29. Qxc4 {[%emt 0:06:39]} Qb5 {[%emt 0:01:54]} 30. Qc3 {[%emt 0:00:39]} Re8 {[%emt 0:02:05]} 31. Rd6 {[%emt 0:04:20]} Qb7+ {[%emt 0:00:36]} 32. Qc6 {[%emt 0:05:11]} Qxc6+ {[%emt 0:00:10]} 33. Rxc6 {[%emt 0:00:04]} Re6 {[%emt 0:00:05]} 34. Rc8+ {[%emt 0:00:12]} Kg7 {[%emt 0:00:07]} 35. Ra8 {[%emt 0:00:22]} Re7 {[%emt 0:01:00]} 36. Ng1 {[%emt 0:00:07]} a5 {[%emt 0:00:27]} 37. Nf3 {[%emt 0:00:28]} a4 {[%emt 0:00:31]} 38. Ne5 {[%emt 0:00:08]} a3 {[%emt 0:03:38]} 39. Nc6 {[%emt 0:00:04]} a2 {[%emt 0:00:05]} 40. Nxe7 {[%emt 0:00:05]} a1=Q {[%emt 0:00:09]} 41. Nc8 {[%emt 0:30:05]} Qa6 {[%emt 0:30:51]} 0-1

[Event "94th FRA-ch Accession 2019"]
[Site "Chartres"]
[Date "2019.08.17"]
[Round "1.3"]
[White "Demuth, Adrien"]
[Black "Devallee, Jeremie"]
[Result "1-0"]
[ECO "E90"]
[WhiteElo "2495"]
[BlackElo "2270"]
[Annotator "ChessBase"]
[PlyCount "51"]
[EventDate "2019.08.17"]
[EventType "swiss"]
[EventCountry "FRA"]
[SourceTitle "playchess.com"]
[Source "ChessBase"]
[SourceQuality "1"]
[TimeControl "40/5400+30:1800+30"]

1. c4 {[%emt 0:00:00]} g6 {[%emt 0:01:00]} 2. d4 {[%emt 0:00:22]} Bg7 {[%emt 0:00:07]} 3. Nc3 {[%emt 0:00:15]} Nf6 {[%emt 0:03:27]} 4. e4 {[%emt 0:00:19]} O-O {[%emt 0:00:12]} 5. Nf3 {[%emt 0:00:22]} d6 {[%emt 0:00:08]} 6. h3 {[%emt 0:00:34]} e5 {[%emt 0:04:15]} 7. d5 {[%emt 0:00:42]} a5 {[%emt 0:08:11]} 8. g4 {[%emt 0:02:32]} Nfd7 {[%emt 0:09:45]} 9. Be3 {[%emt 0:04:44]} Na6 {[%emt 0:06:13]} 10. a3 {[%emt 0:00:31]} Rb8 {[%emt 0:19:22]} 11. Rg1 {[%emt 0:05:06]} Qe8 {[%emt 0:13:15]} 12. h4 {[%emt 0:04:39]} Ndc5 {[%emt 0:04:43]} 13. h5 {[%emt 0:06:09]} a4 {[%emt 0:00:52]} 14. Nd2 {[%emt 0:00:20]} Bd7 {[%emt 0:02:51]} 15. Qf3 {[%emt 0:10:18]} b5 {[%emt 0:06:36]} 16. h6 {[%emt 0:22:28]} Bh8 {[%emt 0:00:37]} 17. cxb5 {[%emt 0:00:14]} Bxb5 {[%emt 0:00:15]} 18. Nxb5 {[%emt 0:00:42]} Rxb5 {[%emt 0:00:04]} 19. Bxb5 {[%emt 0:00:42]} Qxb5 {[%emt 0:00:02]} 20. Bxc5 {[%emt 0:00:07]} Nxc5 {[%emt 0:00:22]} 21. Rg3 {[%emt 0:00:05]} c6 {[%emt 0:07:39]} 22. dxc6 {[%emt 0:04:52]} d5 {[%emt 0:02:23]} 23. exd5 {[%emt 0:08:14]} e4 {[%emt 0:00:25]} 24. Qe2 {[%emt 0:01:03]} Qxb2 {[%emt 0:01:43]} 25. Rb1 {[%emt 0:01:01]} Qd4 {[%emt 0:00:16]} 26. Qc4 {[%emt 0:01:53]} 1-0

[Event "94th FRA-ch Accession 2019"]
[Site "Chartres"]
[Date "2019.08.17"]
[Round "1.4"]
[White "Gertosio, Franck"]
[Black "Bailet, Pierre"]
[Result "1/2-1/2"]
[ECO "C55"]
[WhiteElo "2267"]
[BlackElo "2490"]
[Annotator "ChessBase"]
[PlyCount "59"]
[EventDate "2019.08.17"]
[EventType "swiss"]
[EventCountry "FRA"]
[SourceTitle "playchess.com"]
[Source "ChessBase"]
[SourceQuality "1"]
[TimeControl "40/5400+30:1800+30"]

1. e4 {[%emt 0:00:00]} e5 {[%emt 0:00:52]} 2. Nf3 {[%emt 0:00:00]} Nc6 {[%emt 0:00:43]} 3. Bc4 {[%emt 0:00:04]} Nf6 {[%emt 0:00:29]} 4. d3 {[%emt 0:00:23]} Be7 {[%emt 0:01:11]} 5. c3 {[%emt 0:02:08]} O-O {[%emt 0:01:52]} 6. Bb3 {[%emt 0:01:45]} d5 {[%emt 0:03:23]} 7. Nbd2 {[%emt 0:03:48]} h6 {[%emt 0:09:39]} 8. O-O {[%emt 0:04:05]} Be6 {[%emt 0:02:25]} 9. Re1 {[%emt 0:03:27]} dxe4 {[%emt 0:16:36]} 10. dxe4 {[%emt 0:02:27]} Qd7 {[%emt 0:01:01]} 11. Bxe6 {[%emt 0:07:00]} Qxe6 {[%emt 0:00:10]} 12. Qb3 {[%emt 0:00:18]} Qxb3 {[%emt 0:02:00]} 13. axb3 {[%emt 0:00:13]} a5 {[%emt 0:00:07]} 14. Nc4 {[%emt 0:07:53]} Bd6 {[%emt 0:04:29]} 15. Nxd6 {[%emt 0:03:39]} cxd6 {[%emt 0:00:11]} 16. Bd2 {[%emt 0:10:41]} b5 {[%emt 0:05:23]} 17. Rad1 {[%emt 0:02:48]} a4 {[%emt 0:08:54]} 18. bxa4 {[%emt 0:03:46]} Rxa4 {[%emt 0:02:22]} 19. Bxh6 {[%emt 0:00:44]} Na5 {[%emt 0:10:20]} 20. Bg5 {[%emt 0:04:31]} Nxe4 {[%emt 0:00:58]} 21. Be7 {[%emt 0:00:53]} Re8 {[%emt 0:01:55]} 22. Bxd6 {[%emt 0:00:54]} Nxd6 {[%emt 0:01:22]} 23. Rxd6 {[%emt 0:00:08]} Nc4 {[%emt 0:00:05]} 24. Rd5 {[%emt 0:03:08]} Nxb2 {[%emt 0:00:19]} 25. h4 {[%emt 0:06:57]} e4 {[%emt 0:09:39]} 26. Nd2 {[%emt 0:00:10]} e3 {[%emt 0:00:23]} 27. fxe3 {[%emt 0:05:38]} Rxh4 {[%emt 0:01:31]} 28. Rxb5 {[%emt 0:01:37]} Nd3 {[%emt 0:01:04]} 29. Rd1 {[%emt 0:05:04]} Rh1+ {[%emt 0:01:56]} 30. Kxh1 {[%emt 0:00:07]} 1/2-1/2

[Event "94th FRA-ch Accession 2019"]
[Site "Chartres"]
[Date "2019.08.17"]
[Round "1.5"]
[White "Abergel, Thal"]
[Black "Malassagne, Raphael"]
[Result "1-0"]
[ECO "A12"]
[WhiteElo "2471"]
[BlackElo "2264"]
[Annotator "ChessBase"]
[PlyCount "63"]
[EventDate "2019.08.17"]
[EventType "swiss"]
[EventCountry "FRA"]
[SourceTitle "playchess.com"]
[Source "ChessBase"]
[SourceQuality "1"]
[TimeControl "40/5400+30:1800+30"]

1. Nf3 {[%emt 0:00:00]} Nf6 {[%emt 0:00:00]} 2. c4 {[%emt 0:00:00]} c6 {[%emt 0:00:22]} 3. b3 {[%emt 0:01:03]} d5 {[%emt 0:00:09]} 4. Bb2 {[%emt 0:00:13]} Bf5 {[%emt 0:00:39]} 5. g3 {[%emt 0:01:00]} e6 {[%emt 0:00:54]} 6. Bg2 {[%emt 0:00:11]} h6 {[%emt 0:00:17]} 7. O-O {[%emt 0:00:16]} Be7 {[%emt 0:00:09]} 8. d3 {[%emt 0:00:17]} O-O {[%emt 0:00:14]} 9. Nbd2 {[%emt 0:00:16]} a5 {[%emt 0:00:28]} 10. a3 {[%emt 0:00:27]} Nbd7 {[%emt 0:00:09]} 11. Qb1 {[%emt 0:03:37]} Re8 {[%emt 0:09:03]} 12. b4 {[%emt 0:04:50]} axb4 {[%emt 0:06:40]} 13. axb4 {[%emt 0:00:07]} Qb6 {[%emt 0:01:03]} 14. Bc3 {[%emt 0:03:16]} Rxa1 {[%emt 0:21:02]} 15. Qxa1 {[%emt 0:00:15]} Bxb4 {[%emt 0:00:12]} 16. Bxb4 {[%emt 0:00:22]} Qxb4 {[%emt 0:00:04]} 17. Rb1 {[%emt 0:00:10]} Qd6 {[%emt 0:05:33]} 18. Rxb7 {[%emt 0:00:05]} e5 {[%emt 0:02:10]} 19. Nf1 {[%emt 0:13:09]} Rb8 {[%emt 0:21:26]} 20. Rxb8+ {[%emt 0:12:01]} Qxb8 {[%emt 0:00:05]} 21. Qa6 {[%emt 0:01:33]} Qb2 {[%emt 0:04:51]} 22. N3d2 {[%emt 0:07:04]} Bg4 {[%emt 0:08:50]} 23. Qxc6 {[%emt 0:17:36]} Bxe2 {[%emt 0:04:44]} 24. Bxd5 {[%emt 0:03:38]} Bxd3 {[%emt 0:00:53]} 25. Qc8+ {[%emt 0:00:46]} Kh7 {[%emt 0:02:11]} 26. Bxf7 {[%emt 0:01:44]} Qd4 {[%emt 0:00:18]} 27. Be6 {[%emt 0:02:23]} Nc5 {[%emt 0:05:16]} 28. Bf5+ {[%emt 0:00:54]} g6 {[%emt 0:00:17]} 29. Qc7+ {[%emt 0:03:41]} Kg8 {[%emt 0:04:17]} 30. Nf3 {[%emt 0:01:25]} Qc3 {[%emt 0:01:03]} 31. Nxe5 {[%emt 0:02:38]} gxf5 {[%emt 0:01:40]} 32. Qf7+ {[%emt 0:00:09]} 1-0

[Event "94th FRA-ch Accession 2019"]
[Site "Chartres"]
[Date "2019.08.17"]
[Round "1.6"]
[White "Fruchard, Cyrille"]
[Black "Bijaoui, Manuel"]
[Result "1/2-1/2"]
[ECO "E94"]
[WhiteElo "2261"]
[BlackElo "2433"]
[Annotator "NA"]
[PlyCount "107"]
[EventDate "2019.08.17"]
[EventType "swiss"]
[EventCountry "FRA"]
[SourceTitle "playchess.com"]
[Source "ChessBase"]
[SourceQuality "1"]
[TimeControl "40/5400+30:1800+30"]

1. d4 {[%emt 0:00:00]} Nf6 {[%emt 0:00:00]} 2. c4 {[%emt 0:00:00]} g6 {[%emt 0:01:44]} 3. Nc3 {[%emt 0:00:06]} Bg7 {[%emt 0:00:51]} 4. e4 {[%emt 0:00:30]} d6 {[%emt 0:00:09]} 5. Nf3 {[%emt 0:00:54]} O-O {[%emt 0:02:04]} 6. Be2 {[%emt 0:00:53]} e5 {[%emt 0:04:05]} 7. O-O {[%emt 0:03:41]} exd4 {[%emt 0:04:47]} 8. Nxd4 {[%emt 0:00:38]} Re8 {[%emt 0:00:08]} 9. Bf3 {[%emt 0:09:53]} Nbd7 {[%emt 0:04:51]} 10. Re1 {[%emt 0:01:45]} Ne5 {[%emt 0:08:27]} 11. Be2 {[%emt 0:02:58]} Nc6 {[%emt 0:14:31]} 12. Nxc6 {[%emt 0:04:32]} bxc6 {[%emt 0:01:48]} 13. Bf1 {[%emt 0:10:30]} Bb7 {[%emt 0:06:15]} 14. Bg5 {[%emt 0:08:50]} h6 {[%emt 0:01:17]} 15. Bh4 {[%emt 0:02:36]} c5 {[%emt 0:09:24]} 16. f3 {[%emt 0:03:00]} Qb8 {[%emt 0:04:29]} 17. Qd2 {[%emt 0:06:15]} Nd7 {[%emt 0:01:42]} 18. Rab1 {[%emt 0:04:32]} a5 {[%emt 0:02:24]} 19. a4 {[%emt 0:06:54]} Bc6 {[%emt 0:02:56]} 20. Nb5 {[%emt 0:01:02]} Qb6 {[%emt 0:04:28]} 21. Kh1 {[%emt 0:02:21]} Re6 {[%emt 0:01:52]} 22. Red1 {[%emt 0:03:57]} Ne5 {[%emt 0:01:51]} 23. Be1 {[%emt 0:02:07]} Bb7 {[%emt 0:01:31]} 24. Qc2 {[%emt 0:03:03]} Nc6 {[%emt 0:01:35]} 25. Bc3 {[%emt 0:00:46]} Nd4 {[%emt 0:01:14]} 26. Qd3 {[%emt 0:02:17]} Nc6 {[%emt 0:00:21]} 27. Bxg7 {[%emt 0:00:44]} Kxg7 {[%emt 0:00:09]} 28. Qc3+ {[%emt 0:00:40]} Kh7 {[%emt 0:00:47]} 29. Rd2 {[%emt 0:02:35]} Rae8 {[%emt 0:00:27]} 30. Rbd1 {[%emt 0:00:37]} Nb4 {[%emt 0:01:18]} 31. Kg1 {[%emt 0:01:07]} R8e7 {[%emt 0:00:45]} 32. Kf2 {[%emt 0:02:55]} Qc6 {[%emt 0:00:09]} 33. Bd3 {[%emt 0:03:09]} Qe8 {[%emt 0:03:28]} 34. Bb1 {[%emt 0:00:59]} Kg8 {[%emt 0:00:23]} 35. g4 {[%emt 0:01:32]} Re5 {[%emt 0:01:56]} 36. Qe3 {[%emt 0:02:11]} g5 {[%emt 0:03:26]} 37. Qc3 {[%emt 0:03:36]} h5 {[%emt 0:01:18]} 38. h3 {[%emt 0:00:43]} Qf8 {[%emt 0:00:38]} 39. Kg2 {[%emt 0:01:47]} Qh6 {[%emt 0:00:30]} 40. Qc1 {[%emt 0:02:23]} R5e6 {[%emt 0:03:44]} 41. Nc3 {[%emt 0:03:35]} Qh8 {[%emt 0:07:18]} 42. Rf2 {[%emt 0:04:19]} Qe5 {[%emt 0:08:43]} 43. Nd5 {[%emt 0:03:35]} Bxd5 {[%emt 0:00:17]} 44. exd5 {[%emt 0:01:13]} Rh6 {[%emt 0:01:59]} 45. Bf5 {[%emt 0:02:02]} hxg4 {[%emt 0:02:01]} 46. fxg4 {[%emt 0:04:44]} Qe3 {[%emt 0:00:33]} 47. Rf3 {[%emt 0:02:00]} Qxc1 {[%emt 0:01:02]} 48. Rxc1 {[%emt 0:00:02]} Re2+ {[%emt 0:00:10]} 49. Kg3 {[%emt 0:00:47]} Rxb2 {[%emt 0:00:38]} 50. Rcf1 {[%emt 0:01:16]} Re2 {[%emt 0:01:55]} 51. Be6 {[%emt 0:01:07]} fxe6 {[%emt 0:06:06]} 52. Rf8+ {[%emt 0:00:30]} Kg7 {[%emt 0:00:07]} 53. R8f7+ {[%emt 0:00:10]} Kg8 {[%emt 0:11:59]} 54. R7f3 {[%emt 0:12:42]} 1/2-1/2

[Event "94th FRA-ch Accession 2019"]
[Site "Chartres"]
[Date "2019.08.18"]
[Round "2.1"]
[White "Debray, Christopher"]
[Black "Velten, Paul"]
[Result "1/2-1/2"]
[ECO "C01"]
[WhiteElo "2352"]
[BlackElo "2527"]
[Annotator "ChessBase"]
[PlyCount "73"]
[EventDate "2019.08.17"]
[EventType "swiss"]
[EventCountry "FRA"]
[SourceTitle "playchess.com"]
[Source "ChessBase"]
[SourceQuality "1"]
[TimeControl "40/5400+30:1800+30"]

1. e4 {[%emt 0:00:00]} e6 {[%emt 0:01:13]} 2. d4 {[%emt 0:00:00]} d5 {[%emt 0:00:25]} 3. exd5 {[%emt 0:00:06]} exd5 {[%emt 0:00:34]} 4. Bd3 {[%emt 0:00:05]} Nc6 {[%emt 0:01:28]} 5. c3 {[%emt 0:00:08]} Bd6 {[%emt 0:00:55]} 6. Qf3 {[%emt 0:00:25]} Be6 {[%emt 0:02:47]} 7. Ne2 {[%emt 0:00:16]} Qd7 {[%emt 0:01:03]} 8. Bf4 {[%emt 0:00:38]} Nf6 {[%emt 0:01:10]} 9. Bxd6 {[%emt 0:01:30]} Qxd6 {[%emt 0:00:10]} 10. Qg3 {[%emt 0:01:51]} Qxg3 {[%emt 0:00:28]} 11. hxg3 {[%emt 0:00:37]} Ne7 {[%emt 0:02:52]} 12. Nf4 {[%emt 0:06:21]} Bf5 {[%emt 0:02:45]} 13. Bxf5 {[%emt 0:00:36]} Nxf5 {[%emt 0:00:08]} 14. Nd2 {[%emt 0:05:22]} c6 {[%emt 0:05:05]} 15. O-O {[%emt 0:02:45]} O-O {[%emt 0:01:20]} 16. Rfe1 {[%emt 0:00:26]} Rfe8 {[%emt 0:00:25]} 17. Nd3 {[%emt 0:08:45]} h5 {[%emt 0:01:50]} 18. Re5 {[%emt 0:04:40]} Rxe5 {[%emt 0:01:34]} 19. Nxe5 {[%emt 0:01:45]} Re8 {[%emt 0:03:53]} 20. Re1 {[%emt 0:02:12]} g6 {[%emt 0:17:26]} 21. Kf1 {[%emt 0:04:09]} Kg7 {[%emt 0:00:55]} 22. a4 {[%emt 0:15:44]} Rc8 {[%emt 0:09:56]} 23. Nd3 {[%emt 0:05:43]} a5 {[%emt 0:01:20]} 24. Rb1 {[%emt 0:08:00]} b6 {[%emt 0:03:01]} 25. b4 {[%emt 0:04:53]} axb4 {[%emt 0:04:24]} 26. Rxb4 {[%emt 0:02:12]} c5 {[%emt 0:00:15]} 27. Rxb6 {[%emt 0:02:08]} cxd4 {[%emt 0:00:11]} 28. cxd4 {[%emt 0:00:17]} Nxd4 {[%emt 0:04:14]} 29. Rb4 {[%emt 0:04:11]} Nc6 {[%emt 0:01:24]} 30. Rb5 {[%emt 0:05:16]} Nd4 {[%emt 0:01:47]} 31. Rb4 {[%emt 0:00:13]} Nc6 {[%emt 0:04:48]} 32. Rb5 {[%emt 0:00:07]} Ra8 {[%emt 0:01:20]} 33. Nc5 {[%emt 0:02:47]} Nd4 {[%emt 0:00:58]} 34. Rb4 {[%emt 0:00:30]} Nc6 {[%emt 0:00:15]} 35. Rb5 {[%emt 0:01:30]} Nd4 {[%emt 0:00:05]} 36. Rb4 {[%emt 0:00:04]} Nc6 {[%emt 0:00:27]} 37. Rb5 {[%emt 0:00:01]} 1/2-1/2

[Event "94th FRA-ch Accession 2019"]
[Site "Chartres"]
[Date "2019.08.18"]
[Round "2.2"]
[White "Barseghyan, Harutyun"]
[Black "Gatineau, Yovann"]
[Result "0-1"]
[ECO "E06"]
[WhiteElo "2519"]
[BlackElo "2363"]
[Annotator "ChessBase"]
[PlyCount "124"]
[EventDate "2019.08.17"]
[EventType "swiss"]
[EventCountry "FRA"]
[SourceTitle "playchess.com"]
[Source "ChessBase"]
[SourceQuality "1"]
[TimeControl "40/5400+30:1800+30"]

1. d4 {[%emt 0:00:00]} Nf6 {[%emt 0:05:32]} 2. c4 {[%emt 0:00:00]} e6 {[%emt 0:00:05]} 3. g3 {[%emt 0:00:00]} d5 {[%emt 0:00:16]} 4. Nf3 {[%emt 0:00:00]} Be7 {[%emt 0:00:09]} 5. Bg2 {[%emt 0:00:06]} O-O {[%emt 0:00:11]} 6. Nc3 {[%emt 0:00:04]} dxc4 {[%emt 0:01:35]} 7. Ne5 {[%emt 0:00:28]} Nc6 {[%emt 0:00:12]} 8. Bxc6 {[%emt 0:00:09]} bxc6 {[%emt 0:00:05]} 9. Nxc6 {[%emt 0:00:04]} Qe8 {[%emt 0:00:06]} 10. Nxe7+ {[%emt 0:00:05]} Qxe7 {[%emt 0:00:05]} 11. Qa4 {[%emt 0:00:04]} c5 {[%emt 0:00:06]} 12. dxc5 {[%emt 0:00:04]} Qxc5 {[%emt 0:00:07]} 13. Be3 {[%emt 0:00:04]} Qc7 {[%emt 0:00:19]} 14. O-O-O {[%emt 0:00:09]} Ng4 {[%emt 0:00:52]} 15. Rd2 {[%emt 0:04:36]} Nxe3 {[%emt 0:00:04]} 16. fxe3 {[%emt 0:00:05]} Qc5 {[%emt 0:06:18]} 17. e4 {[%emt 0:05:34]} Rb8 {[%emt 0:04:06]} 18. Rhd1 {[%emt 0:06:19]} Bb7 {[%emt 0:03:28]} 19. Qd7 {[%emt 0:07:08]} h6 {[%emt 0:13:40]} 20. Qd6 {[%emt 0:06:53]} Qa5 {[%emt 0:01:04]} 21. Rd4 {[%emt 0:08:10]} Rfc8 {[%emt 0:02:48]} 22. Qe7 {[%emt 0:06:27]} Bc6 {[%emt 0:02:28]} 23. R1d2 {[%emt 0:08:20]} e5 {[%emt 0:15:01]} 24. Rxc4 {[%emt 0:15:45]} Bxe4 {[%emt 0:00:58]} 25. Rd7 {[%emt 0:00:17]} Bg6 {[%emt 0:00:31]} 26. Rdc7 {[%emt 0:00:10]} Rd8 {[%emt 0:01:57]} 27. Qc5 {[%emt 0:02:20]} Qa6 {[%emt 0:00:15]} 28. Qc6 {[%emt 0:01:25]} Rb6 {[%emt 0:00:47]} 29. Qa4 {[%emt 0:01:00]} Rf6 {[%emt 0:00:06]} 30. b3 {[%emt 0:04:01]} Qd6 {[%emt 0:09:25]} 31. Kb2 {[%emt 0:00:47]} Qd2+ {[%emt 0:07:16]} 32. Ka3 {[%emt 0:00:28]} Qc1+ {[%emt 0:03:07]} 33. Kb4 {[%emt 0:00:11]} Rb6+ {[%emt 0:00:06]} 34. Ka5 {[%emt 0:00:29]} Qe3 {[%emt 0:04:14]} 35. R4c5 {[%emt 0:07:22]} Bf5 {[%emt 0:07:46]} 36. b4 {[%emt 0:07:56]} Be6 {[%emt 0:03:33]} 37. Qc2 {[%emt 0:04:09]} g6 {[%emt 0:04:16]} 38. a4 {[%emt 0:01:45]} Bc4 {[%emt 0:04:45]} 39. b5 {[%emt 0:01:58]} Rd2 {[%emt 0:00:21]} 40. Nd1 {[%emt 0:01:42]} Qxc5 {[%emt 0:01:25]} 41. Rxc5 {[%emt 0:30:51]} Rxc2 {[%emt 0:30:06]} 42. Ne3 {[%emt 0:00:14]} Rxe2 {[%emt 0:00:00]} 43. Nxc4 {[%emt 0:00:00]} Re6 {[%emt 0:00:00]} 44. Rc7 {[%emt 0:00:00]} Rc2 {[%emt 0:00:00]} 45. Kb4 {[%emt 0:00:00]} e4 {[%emt 0:00:00]} 46. Rxa7 {[%emt 0:00:00]} e3 {[%emt 0:00:00]} 47. Nxe3 {[%emt 0:00:00]} Rxe3 {[%emt 0:00:00]} 48. b6 {[%emt 0:00:00]} Rb2+ {[%emt 0:00:00]} 49. Kc5 {[%emt 0:00:00]} Rc3+ {[%emt 0:00:00]} 50. Kd4 {[%emt 0:00:00]} Rcb3 {[%emt 0:00:00]} 51. a5 {[%emt 0:00:00]} Rb5 {[%emt 0:00:00]} 52. Kc3 {[%emt 0:00:00]} Kg7 {[%emt 0:00:00]} 53. h4 {[%emt 0:00:00]} Kf6 {[%emt 0:00:10]} 54. g4 {[%emt 0:00:00]} R2b3+ {[%emt 0:00:42]} 55. Kc2 {[%emt 0:00:00]} R3b4 {[%emt 0:00:14]} 56. Kc3 {[%emt 0:00:00]} Rxg4 {[%emt 0:02:03]} 57. b7 {[%emt 0:00:00]} Kf5 {[%emt 0:02:29]} 58. a6 {[%emt 0:00:00]} Rxh4 {[%emt 0:00:30]} 59. Ra8 {[%emt 0:00:00]} Ra4 {[%emt 0:00:16]} 60. Rd8 {[%emt 0:00:00]} Rb6 {[%emt 0:01:12]} 61. Rd5+ {[%emt 0:00:00]} Ke6 {[%emt 0:00:14]} 62. Rc5 {[%emt 0:00:00]} Raxa6 {[%emt 0:00:07]} 0-1

[Event "94th FRA-ch Accession 2019"]
[Site "Chartres"]
[Date "2019.08.18"]
[Round "2.3"]
[White "Boyer, Mahel"]
[Black "Demuth, Adrien"]
[Result "1/2-1/2"]
[ECO "C24"]
[WhiteElo "2341"]
[BlackElo "2495"]
[Annotator "ChessBase"]
[PlyCount "64"]
[EventDate "2019.08.17"]
[EventType "swiss"]
[EventCountry "FRA"]
[SourceTitle "playchess.com"]
[Source "ChessBase"]
[SourceQuality "1"]
[TimeControl "40/5400+30:1800+30"]

1. e4 {[%emt 0:00:00]} e5 {[%emt 0:00:00]} 2. Bc4 {[%emt 0:04:46]} Nf6 {[%emt 0:00:00]} 3. d3 {[%emt 0:00:04]} c6 {[%emt 0:00:05]} 4. Nf3 {[%emt 0:00:03]} d6 {[%emt 0:00:04]} 5. O-O {[%emt 0:03:45]} Nbd7 {[%emt 0:00:32]} 6. a4 {[%emt 0:09:35]} g6 {[%emt 0:01:31]} 7. c3 {[%emt 0:29:56]} Bg7 {[%emt 0:01:24]} 8. Ba2 {[%emt 0:00:08]} O-O {[%emt 0:00:19]} 9. Re1 {[%emt 0:01:47]} Qc7 {[%emt 0:03:11]} 10. d4 {[%emt 0:04:42]} b6 {[%emt 0:06:41]} 11. Nbd2 {[%emt 0:02:56]} Bb7 {[%emt 0:04:27]} 12. Qc2 {[%emt 0:02:04]} a6 {[%emt 0:01:53]} 13. b4 {[%emt 0:05:29]} b5 {[%emt 0:03:01]} 14. Nb3 {[%emt 0:20:52]} c5 {[%emt 0:23:00]} 15. dxe5 {[%emt 0:01:07]} dxe5 {[%emt 0:05:31]} 16. Nxc5 {[%emt 0:00:16]} Nxc5 {[%emt 0:00:04]} 17. bxc5 {[%emt 0:00:02]} Nd7 {[%emt 0:00:40]} 18. c6 {[%emt 0:02:15]} Bxc6 {[%emt 0:09:06]} 19. Ba3 {[%emt 0:00:06]} bxa4 {[%emt 0:00:03]} 20. Bxf8 {[%emt 0:00:04]} Rxf8 {[%emt 0:00:04]} 21. Bd5 {[%emt 0:04:07]} Bxd5 {[%emt 0:08:20]} 22. exd5 {[%emt 0:00:09]} Nc5 {[%emt 0:00:45]} 23. Rad1 {[%emt 0:02:45]} Rd8 {[%emt 0:01:22]} 24. c4 {[%emt 0:01:12]} h6 {[%emt 0:08:26]} 25. g3 {[%emt 0:02:41]} Qd6 {[%emt 0:05:22]} 26. Re2 {[%emt 0:01:23]} f5 {[%emt 0:04:43]} 27. Kg2 {[%emt 0:00:18]} Nb3 {[%emt 0:03:33]} 28. c5 {[%emt 0:00:38]} Nxc5 {[%emt 0:01:02]} 29. Nxe5 {[%emt 0:00:40]} Bxe5 {[%emt 0:00:08]} 30. Rxe5 {[%emt 0:00:03]} Qxe5 {[%emt 0:00:08]} 31. Qxc5 {[%emt 0:00:01]} a3 {[%emt 0:03:05]} 32. Qxa3 {[%emt 0:00:06]} Rd6 {[%emt 0:01:02]} 1/2-1/2